lending/lending_fUSD_20240219
["ID","MTS","AMOUNT","RATE_DAILY","PERIOD"]
[314483345,1708375922826,-1685.16,0.00047397,30]
[314483346,1708375922837,-500.0,0.00047397,30]
[314483347,1708375922848,-1478.0,0.00047397,30]
[314483348,1708375922859,-840.54,0.00047397,30]
[314483349,1708375922870,-500.0,0.00047397,30]
[314483350,1708375922883,-689.96,0.00047397,30]
[314483351,1708375922895,-2210.61,0.00047397,30]
[314483352,1708375922906,-2915.8,0.00047397,30]
[314483353,1708375922917,-2089.99,0.00047397,30]
[314483354,1708375922928,-500.0,0.00047397,30]
[314483355,1708375922939,-2806.73,0.00047397,30]
[314483356,1708375922950,-500.0,0.00047397,30]
[314483357,1708375922961,-500.0,0.00047397,30]
[314483358,1708375922972,-500.0,0.00047397,30]
[314483359,1708375922982,-500.0,0.00047397,30]
[314483360,1708375923501,-995.73,0.00047397,30]
[314483361,1708375923521,-500.0,0.00047397,30]
[314483362,1708375923530,-535.41,0.00047397,30]
[314483363,1708375923541,-4007.0,0.00047397,30]
[314483364,1708375923552,-500.0,0.00047397,30]
[314483365,1708375923561,-720.61,0.00047397,30]
[314483366,1708375923571,-5460.88,0.00047397,30]
[314483367,1708375923580,-500.0,0.00047397,30]
[314483368,1708375923590,-500.0,0.00047397,30]
[314483369,1708375923600,-770.97,0.00047397,30]
[314483370,1708375923610,-2873.04,0.00047397,30]
[314483371,1708375923620,-500.0,0.00047397,30]
[314483372,1708375923630,-500.0,0.00047397,30]
[314483373,1708375923640,-500.0,0.00047397,30]
[314483374,1708375923649,-500.0,0.00047397,30]
[314483375,1708375923659,-3954.52,0.00047397,30]
[314483376,1708375923669,-3457.64,0.00047397,30]
[314483377,1708375923678,-500.0,0.00047397,30]
[314483378,1708375923688,-2900.34,0.00047397,30]
[314483379,1708375923697,-1032.0,0.00047397,30]
[314483380,1708375923706,-1711.5,0.00047397,30]
[314483381,1708375923715,-500.0,0.00047397,30]
[314483382,1708375923724,-515.13746905,0.00047397,30]
[314483383,1708375923734,-500.0,0.00047397,30]
[314483384,1708375923743,-1637.24,0.00047397,30]
[314483385,1708375923751,-500.0,0.00047397,30]
[314483386,1708375923761,-1605.65,0.00047397,30]
[314483387,1708375923770,-500.0,0.00047397,30]
[314483388,1708375923779,-500.0,0.00047397,30]
[314483389,1708375923788,-1340.91,0.00047397,30]
[314483390,1708375923799,-4980.44,0.00047397,30]
[314483391,1708375923808,-1138.43,0.00047397,30]
[314483392,1708375923817,-500.0,0.00047397,30]
[314483393,1708375923828,-4358.32,0.00047397,30]
[314483394,1708375923837,-3294.28,0.00047397,30]
[314483395,1708375923848,-500.0,0.00047397,30]
[314483396,1708375923857,-478.14716238,0.00047397,30]
[314483397,1708375923867,-500.0,0.00047397,30]
[314483398,1708375923877,-1721.24,0.00047397,30]
[314483399,1708375923886,-500.0,0.00047397,30]
[314483400,1708375923896,-2226.31,0.00047397,30]
[314483401,1708375923905,-500.0,0.00047397,30]
[314483402,1708375923915,-500.0,0.00047397,30]
[314483403,1708375923924,-11469.95,0.00047397,30]
[314483404,1708375923934,-560.91814583,0.00047397,30]
[314483405,1708375923943,-500.0,0.00047397,30]
[314483406,1708375923953,-500.0,0.00047397,30]
[314483407,1708375923963,-500.0,0.00047397,30]
[314483408,1708375923973,-1155.9,0.00047397,30]
[314483409,1708375923982,-914.27,0.00047397,30]
[314483410,1708375923991,-4304.4,0.00047397,30]
[314483411,1708375924001,-3503.11,0.00047397,30]
[314483412,1708375924010,-500.0,0.00047397,30]
[314483413,1708375924019,-500.0,0.00047397,30]
[314483414,1708375924028,-2631.73,0.00047397,30]
[314483415,1708375924037,-500.0,0.00047397,30]
[314483416,1708375924049,-500.0,0.00047397,30]
[314483417,1708375924059,-500.0,0.00047397,30]
[314483418,1708375924069,-500.0,0.00047397,30]
[314483419,1708375924078,-7606.19,0.00047397,30]
[314483420,1708375924089,-500.0,0.00047397,30]
[314483421,1708375924100,-500.0,0.00047397,30]
[314483422,1708375924109,-500.0,0.00047397,30]
[314483423,1708375924118,-2816.09,0.00047397,30]
[314483424,1708375924127,-1106.22,0.00047397,30]
[314483425,1708375924138,-500.0,0.00047397,30]
[314483426,1708375924147,-1288.03,0.00047397,30]
[314483427,1708375924157,-500.0,0.00047397,30]
[314483428,1708375924166,-800.19,0.00047397,30]
[314483429,1708375924177,-500.0,0.00047397,30]
[314483430,1708375924188,-500.0,0.00047397,30]
[314483431,1708375924197,-500.0,0.00047397,30]
[314483432,1708375924206,-500.0,0.00047397,30]
[314483433,1708375924216,-5000.0,0.00047397,39]
[314483434,1708375924225,-4924.17,0.00047397,30]
[314483435,1708375924235,-2194.88,0.00047397,30]
[314483436,1708375924244,-6760.53,0.00047397,30]
[314483437,1708375924254,-1418.43,0.00047397,30]
[314483438,1708375924264,-707.46,0.00047397,30]
[314483439,1708375924274,-500.0,0.00047397,30]
[314483440,1708375924284,-500.0,0.00047397,30]
[314483441,1708375924293,-1586.82,0.00047397,30]
[314483442,1708375924304,-6176.75,0.00047397,30]
[314483443,1708375924313,-500.0,0.00047397,30]
[314483444,1708375924322,-974.61,0.00047397,30]
[314483445,1708375924331,-500.0,0.00047397,30]
[314483446,1708375924341,-502.06,0.00047397,30]
[314483447,1708375924350,-620.96,0.00047397,30]
[314483448,1708375924360,-500.0,0.00047397,30]
[314483449,1708375924369,-500.0,0.00047397,30]
[314483450,1708375924379,-1370.86,0.00047397,30]
[314483451,1708375924389,-500.0,0.00047397,30]
[314483452,1708375924399,-18642.5,0.00047397,30]
[314483453,1708375924408,-500.0,0.00047397,30]
[314483454,1708375924419,-500.0,0.00047397,30]
[314483455,1708375924428,-957.13,0.00047397,30]
[314483456,1708375924437,-664.1,0.00047397,30]
[314483457,1708375924448,-500.0,0.00047397,30]
[314483458,1708375924457,-2270.35,0.00047397,30]
[314483459,1708375924467,-1421.33,0.00047397,30]
[314483460,1708375924476,-1319.59,0.00047397,30]
[314483461,1708375924485,-500.0,0.00047397,30]
[314483462,1708375924495,-43487.96,0.00047397,30]
[314483463,1708375924504,-1370.06,0.00047397,30]
[314483464,1708375924513,-3424.97,0.00047397,30]
[314483465,1708375924522,-500.0,0.00047397,30]
[314483466,1708375924531,-500.0,0.00047397,30]
[314483467,1708375924541,-2622.18,0.00047397,30]
[314483468,1708375924552,-500.0,0.00047397,30]
[314483469,1708375924561,-500.0,0.00047397,30]
[314483470,1708375924570,-500.0,0.00047397,30]
[314483471,1708375924580,-500.0,0.00047397,30]
[314483472,1708375924590,-731.53,0.00047397,30]
[314483473,1708375924600,-1138.11,0.00047397,30]
[314483474,1708375924609,-500.0,0.00047397,30]
[314483475,1708375924619,-500.0,0.00047397,30]
[314483476,1708375924630,-500.0,0.00047397,30]
[314483477,1708375924641,-3031.14,0.00047397,30]
[314483478,1708375924651,-500.0,0.00047397,30]
[314483479,1708375924660,-4401.37,0.00047397,30]
[314483480,1708375924669,-924.5,0.00047397,30]
[314483481,1708375924680,-500.0,0.00047397,30]
[314483482,1708375924689,-724.1,0.00047397,2]
[314483483,1708375924699,-501.9,0.00047397,30]
[314483484,1708375924708,-500.0,0.00047397,30]
[314483485,1708375924717,-500.0,0.00047397,30]
[314483486,1708375924726,-730.67,0.00047397,30]
[314483487,1708375924735,-500.0,0.00047397,30]
[314483488,1708375924745,-500.0,0.00047397,30]
[314483489,1708375924756,-500.0,0.00047397,30]
[314483490,1708375924766,-2841.63,0.00047397,30]
[314483491,1708375924775,-500.0,0.00047397,30]
[314483492,1708375924784,-8215.23,0.00047397,30]
[314483493,1708375924794,-500.0,0.00047397,30]
[314483494,1708375924805,-642.81,0.00047397,30]
[314483495,1708375924814,-500.0,0.00047397,30]
[314483496,1708375924823,-2832.73,0.00047397,30]
[314483497,1708375924832,-506.74,0.00047397,30]
[314483498,1708375924842,-2484.41,0.00047397,30]
[314483499,1708375924851,-3313.69,0.00047397,30]
[314483500,1708375924861,-3103.46,0.00047397,30]
[314483501,1708375924871,-2792.02,0.00047397,30]
[314483502,1708375924880,-500.0,0.00047397,30]
[314483503,1708375924890,-500.0,0.00047397,30]
[314483504,1708375924900,-3395.26,0.00047397,30]
[314483505,1708375924909,-974.83,0.00047397,30]
[314483506,1708375924918,-1617.41,0.00047397,30]
[314483507,1708375924927,-500.0,0.00047397,30]
[314483508,1708375924937,-500.0,0.00047397,30]
[314483509,1708375924946,-571.28,0.00047397,30]
[314483510,1708375924955,-4198.24,0.00047397,30]
[314483511,1708375924964,-500.0,0.00047397,30]
[314483512,1708375924974,-1617.03,0.00047397,30]
[314483513,1708375924983,-1442.14,0.00047397,30]
[314483514,1708375924992,-500.0,0.00047397,30]
[314483515,1708375925002,-500.0,0.00047397,30]
[314483516,1708375925012,-555.41,0.00047397,30]
[314483517,1708375925022,-500.0,0.00047397,30]
[314483518,1708375925032,-2704.31,0.00047397,30]
[314483519,1708375925041,-500.0,0.00047397,30]
[314483520,1708375925052,-3256.74,0.00047397,30]
[314483521,1708375925062,-1307.39,0.00047397,30]
[314483522,1708375925074,-10591.79,0.00047397,30]
[314483523,1708375925084,-906.19,0.00047397,30]
[314483524,1708375925098,-1843.46,0.00047397,30]
[314483525,1708375925108,-500.0,0.00047397,30]
[314483526,1708375925119,-500.0,0.00047397,30]
[314483527,1708375925128,-500.0,0.00047397,30]
[314483528,1708375925140,-2160.68,0.00047397,30]
[314483529,1708375925150,-523.30889379,0.00047397,30]
[314483530,1708375925160,-1427.99,0.00047397,30]
[314483531,1708375925171,-595.56,0.00047397,30]
[314483532,1708375925181,-538.66,0.00047397,30]
[314483533,1708375925192,-645.76,0.00047397,30]
[314483534,1708375925202,-500.0,0.00047397,30]
[314483535,1708375925212,-993.04,0.00047397,30]
[314483536,1708375925222,-2630.29,0.00047397,30]
[314483537,1708375925232,-500.0,0.00047397,30]
[314483538,1708375925242,-688.24,0.00047397,30]
[314483539,1708375925253,-500.0,0.00047397,30]
[314483540,1708375925263,-1435.94,0.00047397,30]
[314483541,1708375925273,-1027.61,0.00047397,30]
[314483542,1708375925283,-1182.36,0.00047397,30]
[314483543,1708375925293,-10839.07,0.00047397,30]
[314483544,1708375925305,-1000.0,0.00047397,7]
[314483545,1708375925315,-500.0,0.00047397,30]
[314483546,1708375925326,-500.0,0.00047397,30]
[314483547,1708375925335,-2808.92,0.00047397,30]
[314483548,1708375925345,-500.0,0.00047397,30]
[314483549,1708375925356,-500.0,0.00047397,30]
[314483550,1708375925366,-697.96,0.00047397,30]
[314483551,1708375925376,-796.11,0.00047397,30]
[314483552,1708375925387,-500.0,0.00047397,30]
[314483553,1708375925398,-571.63,0.00047397,30]
[314483554,1708375925408,-5101.05,0.00047397,30]
[314483555,1708375925419,-500.0,0.00047397,30]
[314483556,1708375925429,-553.84,0.00047397,30]
[314483557,1708375925440,-3052.86,0.00047397,30]
[314483558,1708375925452,-1303.89,0.00047397,30]
[314483559,1708375925462,-500.0,0.00047397,30]
[314483560,1708375925473,-1201.23,0.00047397,30]
[314483561,1708375925483,-500.0,0.00047397,30]
[314483562,1708375925493,-500.0,0.00047397,30]
[314483563,1708375925503,-500.0,0.00047397,30]
[314483564,1708375925514,-500.0,0.00047397,30]
[314483565,1708375925524,-656.54,0.00047397,30]
[314483566,1708375925535,-3044.92,0.00047397,30]
[314483567,1708375925545,-2710.85,0.00047397,30]
[314483568,1708375925555,-991.51,0.00047397,30]
[314483569,1708375925565,-500.0,0.00047397,30]
[314483570,1708375925575,-1083.47,0.00047397,30]
[314483571,1708375925585,-251.42791871,0.00047397,30]
[314483572,1708375925595,-4385.72,0.00047397,30]
[314483573,1708375925605,-500.0,0.00047397,30]
[314483574,1708375925614,-500.0,0.00047397,30]
[314483575,1708375925624,-500.0,0.00047397,30]
[314483576,1708375925634,-500.0,0.00047397,30]
[314483577,1708375925645,-500.0,0.00047397,30]
[314483578,1708375925655,-500.0,0.00047397,30]
[314483579,1708375925666,-500.0,0.00047397,30]
[314483580,1708375925675,-500.0,0.00047397,30]
[314483581,1708375925685,-500.0,0.00047397,30]
[314483582,1708375925696,-500.0,0.00047397,30]
[314483583,1708375925707,-3967.79,0.00047397,30]
[314483584,1708375925717,-939.16,0.00047397,30]
[314483585,1708375925728,-587.09,0.00047397,30]
[314483586,1708375925738,-10289.24,0.00047397,30]
[314483587,1708375925748,-2003.31,0.00047397,30]
[314483588,1708375925758,-500.0,0.00047397,30]
[314483589,1708375925768,-500.0,0.00047397,30]
[314483590,1708375925778,-990.49,0.00047397,30]
[314483591,1708375925788,-500.0,0.00047397,30]
[314483592,1708375925797,-500.0,0.00047397,30]
[314483593,1708375925807,-3009.13,0.00047397,30]
[314483594,1708375925817,-500.0,0.00047397,30]
[314483595,1708375925826,-500.0,0.00047397,14]
[314483596,1708375925837,-9120.54,0.00047397,30]
[314483597,1708375925847,-5612.0,0.00047397,30]
[314483598,1708375925857,-500.0,0.00047397,30]
[314483599,1708375925868,-3562.84,0.00047397,30]
[314483600,1708375925877,-500.0,0.00047397,30]
[314483601,1708375925888,-500.0,0.00047397,30]
[314483602,1708375925899,-500.0,0.00047397,30]
[314483603,1708375925909,-3072.77,0.00047397,30]
[314483604,1708375925918,-500.0,0.00047397,30]
[314483605,1708375925928,-500.0,0.00047397,30]
[314483606,1708375925938,-500.0,0.00047397,30]
[314483607,1708375925948,-500.0,0.00047397,30]
[314483608,1708375925958,-2054.19,0.00047397,30]
[314483609,1708375925969,-1723.46,0.00047397,30]
[314483610,1708375925979,-500.0,0.00047397,30]
[314483611,1708375925989,-500.0,0.00047397,30]
[314483612,1708375925998,-1071.31,0.00047397,30]
[314483613,1708375926008,-1151.9,0.00047397,30]
[314483614,1708375926018,-545.97,0.00047397,30]
[314483615,1708375926028,-2309.28,0.00047397,30]
[314483616,1708375926037,-500.0,0.00047397,2]
[314483617,1708375926047,-515.04360485,0.00047397,30]
[314483618,1708375926057,-500.0,0.00047397,30]
[314483619,1708375926069,-1803.4,0.00047397,30]
[314483620,1708375926079,-500.0,0.00047397,30]
[314483621,1708375926090,-1886.18,0.00047397,30]
[314483622,1708375926102,-500.0,0.00047397,30]
[314483623,1708375926112,-500.0,0.00047397,30]
[314483624,1708375926122,-2872.4,0.00047397,30]
[314483625,1708375926131,-2704.83,0.00047397,30]
[314483626,1708375926142,-500.0,0.00047397,30]
[314483627,1708375926375,-500.0,0.00047397,30]
[314483628,1708375926386,-542.05,0.00047397,30]
[314483629,1708375926397,-721.8,0.00047397,30]
[314483630,1708375926407,-520.83,0.00047397,30]
[314483631,1708375926417,-500.0,0.00047397,30]
[314483632,1708375926428,-3755.12,0.00047397,30]
[314483633,1708375926438,-500.0,0.00047397,30]
[314483634,1708375926449,-4422.39,0.00047397,30]
[314483635,1708375926459,-500.0,0.00047397,30]
[314483636,1708375926470,-2288.52,0.00047397,30]
[314483637,1708375926481,-500.0,0.00047397,30]
[314483638,1708375926492,-500.0,0.00047397,30]
[314483639,1708375926502,-500.0,0.00047397,30]
[314483640,1708375926513,-500.0,0.00047397,30]
[314483641,1708375926524,-500.0,0.00047397,30]
[314483642,1708375926534,-3732.75,0.00047397,30]
[314483643,1708375926545,-500.87,0.00047397,30]
[314483644,1708375926555,-4475.17,0.00047397,30]
[314483645,1708375926564,-500.0,0.00047397,30]
[314483646,1708375926575,-500.0,0.00047397,30]
[314483647,1708375926585,-500.0,0.00047397,30]
[314483648,1708375926594,-500.0,0.00047397,30]
[314483649,1708375926604,-2396.12,0.00047397,30]
[314483650,1708375926614,-500.0,0.00047397,30]
[314483651,1708375926624,-708.6,0.00047397,30]
[314483652,1708375926633,-500.0,0.00047397,30]
[314483653,1708375926642,-500.0,0.00047397,30]
[314483654,1708375926652,-1041.64,0.00047397,30]
[314483655,1708375926663,-2295.56,0.00047397,30]
[314483656,1708375926673,-840.86,0.00047397,30]
[314483657,1708375926683,-500.0,0.00047397,30]
[314483658,1708375926692,-1644.14,0.00047397,30]
[314483659,1708375926703,-2371.53,0.00047397,30]
[314483660,1708375926712,-500.0,0.00047397,30]
[314483661,1708375926723,-500.0,0.00047397,30]
[314483662,1708375926733,-500.0,0.00047397,30]
[314483663,1708375926742,-535.6,0.00047397,30]
[314483664,1708375926752,-500.0,0.00047397,30]
[314483665,1708375926762,-500.0,0.00047397,30]
[314483666,1708375926771,-500.0,0.00047397,30]
[314483667,1708375926780,-4038.36,0.00047397,30]
[314483668,1708375926790,-1050.6,0.00047397,30]
[314483669,1708375926801,-658.5,0.00047397,30]
[314483670,1708375926811,-500.0,0.00047397,30]
[314483671,1708375926820,-1214.7,0.00047397,30]
[314483672,1708375926830,-4457.1,0.00047397,30]
[314483673,1708375926840,-500.0,0.00047397,30]
[314483674,1708375926849,-500.0,0.00047397,30]
[314483675,1708375926859,-500.0,0.00047397,30]
[314483676,1708375926873,-500.0,0.00047397,30]
[314483677,1708375926882,-2419.58,0.00047397,30]
[314483678,1708375926892,-613.95,0.00047397,30]
[314483679,1708375926902,-500.0,0.00047397,30]
[314483680,1708375926911,-3961.59,0.00047397,30]
[314483681,1708375926920,-768.13,0.00047397,30]
[314483682,1708375926930,-500.0,0.00047397,30]
[314483683,1708375926939,-912.83,0.00047397,30]
[314483684,1708375926948,-500.0,0.00047397,30]
[314483685,1708375926957,-500.0,0.00047397,30]
[314483686,1708375926966,-1553.73,0.00047397,30]
[314483687,1708375926976,-500.0,0.00047397,30]
[314483688,1708375926985,-513.62,0.00047397,30]
[314483689,1708375926994,-369.66561196,0.00047397,30]
[314483690,1708375927004,-500.0,0.00047397,30]
[314483691,1708375927013,-500.0,0.00047397,30]
[314483692,1708375927023,-1959.87,0.00047397,30]
[314483693,1708375927033,-685.61,0.00047397,30]
[314483694,1708375927043,-500.0,0.00047397,30]
[314483695,1708375927053,-1303.35,0.00047397,30]
[314483696,1708375927063,-3450.55,0.00047397,30]
[314483697,1708375927076,-637.22,0.00047397,30]
[314483698,1708375927087,-1315.63,0.00047397,30]
[314483699,1708375927098,-500.0,0.00047397,30]
[314483700,1708375927108,-1018.49,0.00047397,30]
[314483701,1708375927118,-1826.87,0.00047397,30]
[314483702,1708375927128,-500.0,0.00047397,30]
[314483703,1708375927138,-500.0,0.00047397,30]
[314483704,1708375927147,-2574.94,0.00047397,30]
[314483705,1708375927156,-1011.56,0.00047397,30]
[314483706,1708375927167,-507.99881593,0.00047397,30]
[314483707,1708375927176,-1602.06,0.00047397,30]
[314483708,1708375927186,-1629.15,0.00047397,30]
[314483709,1708375927195,-309.18377484,0.00047397,30]
[314483710,1708375927205,-500.0,0.00047397,30]
[314483711,1708375927214,-2466.37,0.00047397,30]
[314483712,1708375927224,-723.21,0.00047397,30]
[314483713,1708375927233,-500.0,0.00047397,30]
[314483714,1708375927243,-6293.09344713,0.000474,40]
[314483715,1708375927252,-151.0,0.000474,18]
[314483716,1708375927262,-1000.0,0.000474,7]
[314483717,1708375927271,-723.3690027,0.00047408,2]
[314483718,1708375927282,-149734.2097318,0.00047408,2]
[314483719,1708375927291,-11473.5176366,0.00047408,2]
[314483720,1708375927302,-4147.2121752,0.00047408,2]
[314483721,1708375927312,-150.0,0.0004744,2]
[314483722,1708375927322,-155.59712082,0.00047464,30]
[314483723,1708375927332,-241.88879428,0.00047481,30]
[314483724,1708375927341,-211.82443069,0.00047486,30]
[314483725,1708375927351,-606.0,0.000475,2]
[314483726,1708375927360,-795.16,0.00047508,15]
[314483727,1708375927370,-795.16,0.00047508,15]
[314483728,1708375927380,-162.97294718,0.00047528,30]
[314483729,1708375927390,-889.92258563,0.00047532,5]
[314483730,1708375927399,-5000.0,0.00047532,2]
[314483731,1708375927409,-156.62887964,0.00047571,30]
[314483732,1708375927419,-154.41448839,0.00047571,55]
[314483733,1708375927430,-151.0,0.000476,18]
[314483734,1708375927440,-153.28144718,0.00047634,30]
[314483735,1708375927449,-723.3690027,0.00047638,2]
[314483736,1708375927459,-122989.564965,0.00047638,2]
[314483737,1708375927468,-9427.8457857,0.00047638,2]
[314483738,1708375927479,-3407.7846103,0.00047638,2]
[314483739,1708375927492,-500.0,0.00047671,30]
[314483740,1708375927502,-500.0,0.00047671,30]
[314483741,1708375927512,-500.0,0.00047671,30]
[314483742,1708375927522,-297.70292249,0.00047671,30]
[314483743,1708375927531,-500.0,0.00047671,30]
[314483744,1708375927541,-500.0,0.00047671,30]
[314483745,1708375927552,-530.68092017,0.00047671,30]
[314483746,1708375927561,-500.0,0.00047671,30]
[314483747,1708375927571,-500.0,0.00047671,30]
[314483748,1708375927581,-658.14,0.00047671,30]
[314483749,1708375927591,-500.0,0.00047671,30]
[314483750,1708375927600,-504.81798498,0.00047671,30]
[314483751,1708375927613,-500.0,0.00047671,30]
[314483752,1708375927622,-500.0,0.00047671,30]
[314483753,1708375927632,-500.0,0.00047671,30]
[314483754,1708375927641,-500.0,0.00047671,30]
[314483755,1708375927651,-727.1,0.00047671,30]
[314483756,1708375927661,-500.0,0.00047671,30]
[314483757,1708375927671,-500.0,0.00047671,30]
[314483758,1708375927681,-500.0,0.00047671,30]
[314483759,1708375927690,-611.49,0.00047671,30]
[314483760,1708375927699,-500.0,0.00047671,30]
[314483761,1708375927709,-500.0,0.00047671,30]
[314483762,1708375927719,-500.0,0.00047671,30]
[314483763,1708375927728,-500.0,0.00047671,30]
[314483764,1708375927739,-500.0,0.00047671,30]
[314483765,1708375927749,-500.0,0.00047671,30]
[314483766,1708375927758,-500.0,0.00047671,30]
[314483767,1708375927768,-553.98969778,0.00047671,30]
[314483768,1708375927778,-500.0,0.00047671,30]
[314483769,1708375927789,-642.69,0.00047671,30]
[314483770,1708375927799,-502.75,0.00047671,30]
[314483771,1708375927808,-500.0,0.00047671,30]
[314483772,1708375927818,-500.0,0.00047671,30]
[314483773,1708375927828,-500.0,0.00047671,30]
[314483774,1708375927839,-500.0,0.00047671,30]
[314483775,1708375927848,-500.0,0.00047671,30]
[314483776,1708375927858,-500.0,0.00047671,30]
[314483777,1708375927867,-500.0,0.00047671,30]
[314483778,1708375927877,-680.66,0.00047671,30]
[314483779,1708375927886,-500.0,0.00047671,30]
[314483780,1708375927896,-500.0,0.00047671,30]
[314483781,1708375927906,-422.79776413,0.00047671,30]
[314483782,1708375927915,-534.7,0.00047671,30]
[314483783,1708375927924,-500.0,0.00047671,30]
[314483784,1708375927934,-673.61,0.00047671,30]
[314483785,1708375927943,-500.0,0.00047671,30]
[314483786,1708375927952,-500.0,0.00047671,30]
[314483787,1708375927962,-500.0,0.00047671,30]
[314483788,1708375927971,-500.0,0.00047671,30]
[314483789,1708375927981,-500.0,0.00047671,30]
[314483790,1708375927990,-500.0,0.00047671,30]
[314483791,1708375928000,-500.0,0.00047671,30]
[314483792,1708375928010,-546.31,0.00047671,30]
[314483793,1708375928019,-500.0,0.00047671,30]
[314483794,1708375928028,-500.0,0.00047671,30]
[314483795,1708375928038,-500.0,0.00047671,30]
[314483796,1708375928048,-500.0,0.00047671,30]
[314483797,1708375928057,-500.0,0.00047671,30]
[314483798,1708375928067,-449.80441848,0.00047671,30]
[314483799,1708375928079,-700.86,0.00047671,30]
[314483800,1708375928091,-500.0,0.00047671,30]
[314483801,1708375928102,-500.0,0.00047671,30]
[314483802,1708375928112,-525.90242277,0.00047671,30]
[314483803,1708375928121,-500.0,0.00047671,30]
[314483804,1708375928131,-515.56,0.00047671,30]
[314483805,1708375928141,-500.0,0.00047671,30]
[314483806,1708375928151,-150.0,0.00047671,30]
[314483807,1708375928161,-500.0,0.00047671,30]
[314483808,1708375928172,-500.0,0.00047671,30]
[314483809,1708375928181,-500.0,0.00047671,30]
[314483810,1708375928191,-533.01155398,0.00047671,30]
[314483811,1708375928201,-5000.0,0.00047671,30]
[314483812,1708375928210,-500.0,0.00047671,30]
[314483813,1708375928220,-500.0,0.00047671,30]
[314483814,1708375928230,-500.0,0.00047671,30]
[314483815,1708375928239,-683.1,0.00047671,30]
[314483816,1708375928249,-500.0,0.00047671,30]
[314483817,1708375928259,-500.0,0.00047671,30]
[314483818,1708375928270,-500.0,0.00047671,30]
[314483819,1708375928280,-773.54,0.00047671,30]
[314483820,1708375928289,-500.0,0.00047671,30]
[314483821,1708375928298,-500.0,0.00047671,30]
[314483822,1708375928308,-500.0,0.00047671,30]
[314483823,1708375928318,-521.99821446,0.00047671,30]
[314483824,1708375928327,-500.0,0.00047671,30]
[314483825,1708375928337,-575.40349515,0.00047671,30]
[314483826,1708375928346,-500.0,0.00047671,30]
[314483827,1708375928356,-500.0,0.00047671,30]
[314483828,1708375928366,-500.0,0.00047671,30]
[314483829,1708375928376,-635.49,0.00047671,30]
[314483830,1708375928386,-605.14,0.00047671,30]
[314483831,1708375928395,-500.0,0.00047671,30]
[314483832,1708375928405,-500.0,0.00047671,30]
[314483833,1708375928415,-500.0,0.00047671,30]
[314483834,1708375928426,-500.0,0.00047671,30]
[314483835,1708375928436,-500.0,0.00047671,2]
[314483836,1708375928446,-500.0,0.00047671,30]
[314483837,1708375928455,-521.73,0.00047671,30]
[314483838,1708375928465,-500.0,0.00047671,30]
[314483839,1708375928474,-500.0,0.00047671,30]
[314483840,1708375928484,-500.0,0.00047671,30]
[314483841,1708375928494,-404.75612013,0.00047671,30]
[314483842,1708375928504,-175.23085265,0.00047671,30]
[314483843,1708375928514,-500.0,0.00047671,30]
[314483844,1708375928523,-500.0,0.00047671,30]